[Event "Titled Tuesday Blitz August 15 Late 2023"]
[White "Bazilius, Augustinas"]
[Black "Przybylski, Wojciech"]
[WhiteFideId "12832251"]
[BlackFideId "1117599"]
[WhiteElo "2484"]
[BlackElo "2566"]
[Result "1-0"]
[Round "9"]
[TimeControl "180+1"]
[Date "2023.08.15"]
[WhiteClock "0:00:16"]
[BlackClock "0:00:07"]
[Board "48"]

1. e4 {[%clk 0:02:54]}  c5 {[%clk 0:02:59]} 2. d3 {[%clk 0:02:53]}  d5 {[%clk 0:02:58]} 3. exd5 {[%clk 0:02:53]}  Nf6 {[%clk 0:02:58]} 4. Nc3 {[%clk 0:02:54]}  Nxd5 {[%clk 0:02:58]} 5. Nxd5 {[%clk 0:02:55]}  Qxd5 {[%clk 0:02:57]} 6. Nf3 {[%clk 0:02:56]}  Nc6 {[%clk 0:02:57]} 7. Be2 {[%clk 0:02:57]}  g6 {[%clk 0:02:56]} 8. O-O {[%clk 0:02:51]}  Bg7 {[%clk 0:02:56]} 9. c3 {[%clk 0:02:51]}  O-O {[%clk 0:02:55]} 10. Qc2 {[%clk 0:02:47]}  e5 {[%clk 0:02:52]} 11. Nd2 {[%clk 0:02:34]}  Bf5 {[%clk 0:02:43]} 12. Rd1 {[%clk 0:02:16]}  Rad8 {[%clk 0:02:41]} 13. Ne4 {[%clk 0:02:14]}  c4 {[%clk 0:02:39]} 14. Bg5 {[%clk 0:02:02]}  f6 {[%clk 0:02:34]} 15. Be3 {[%clk 0:01:54]}  b5 {[%clk 0:02:10]} 16. dxc4 {[%clk 0:01:41]}  Qxe4 {[%clk 0:02:02]} 17. Qxe4 {[%clk 0:01:38]}  Bxe4 {[%clk 0:02:01]} 18. cxb5 {[%clk 0:01:38]}  Na5 {[%clk 0:01:43]} 19. b4 {[%clk 0:01:39]}  Nb7 {[%clk 0:01:35]} 20. Bxa7 {[%clk 0:01:38]}  Bc2 {[%clk 0:01:19]} 21. Bc4+ {[%clk 0:01:35]}  Kh8 {[%clk 0:01:19]} 22. Rd5 {[%clk 0:01:28]}  Nd6 {[%clk 0:01:10]} 23. Bb6 {[%clk 0:01:23]}  Rc8 {[%clk 0:00:59]} 24. Rxd6 {[%clk 0:01:11]}  Rxc4 {[%clk 0:00:59]} 25. a4 {[%clk 0:01:12]}  Rxc3 {[%clk 0:00:49]} 26. a5 {[%clk 0:01:12]}  Ba4 {[%clk 0:00:34]} 27. Rd5 {[%clk 0:01:04]}  Rfc8 {[%clk 0:00:26]} 28. Be3 {[%clk 0:01:03]}  Bb3 {[%clk 0:00:23]} 29. Rc5 {[%clk 0:01:01]}  f5 {[%clk 0:00:20]} 30. b6 {[%clk 0:00:56]}  e4 {[%clk 0:00:10]} 31. b7 {[%clk 0:00:52]}  Rg8 {[%clk 0:00:07]} 32. Rxc3 {[%clk 0:00:42]}  Bxc3 {[%clk 0:00:06]} 33. Ra3 {[%clk 0:00:42]}  Rd8 {[%clk 0:00:05]} 34. g4 {[%clk 0:00:32]}  Bd1 {[%clk 0:00:02]} 35. Rxc3 {[%clk 0:00:30]}  Bf3 {[%clk 0:00:02]} 36. Rc8 {[%clk 0:00:31]}  Kg7 {[%clk 0:00:01]} 37. Rxd8 {[%clk 0:00:31]}  f4 {[%clk 0:00:02]} 38. Bd4+ {[%clk 0:00:31]}  Kh6 {[%clk 0:00:02]} 39. b8=Q {[%clk 0:00:28]}  Kg5 {[%clk 0:00:01]} 40. Qxf4+ {[%clk 0:00:27]}  Kxf4 {[%clk 0:00:01]} 41. Rf8+ {[%clk 0:00:28]}  Kxg4 {[%clk 0:00:01]} 42. Rxf3 {[%clk 0:00:28]}  exf3 {[%clk 0:00:01]} 43. a6 {[%clk 0:00:27]}  g5 {[%clk 0:00:02]} 44. a7 {[%clk 0:00:28]}  h5 {[%clk 0:00:02]} 45. a8=N {[%clk 0:00:27]}  Kh3 {[%clk 0:00:02]} 46. b5 {[%clk 0:00:27]}  g4 {[%clk 0:00:02]} 47. Be5 {[%clk 0:00:22]}  h4 {[%clk 0:00:02]} 48. b6 {[%clk 0:00:22]}  g3 {[%clk 0:00:01]} 49. hxg3 {[%clk 0:00:22]}  hxg3 {[%clk 0:00:02]} 50. Bxg3 {[%clk 0:00:23]}  Kg4 {[%clk 0:00:02]} 51. b7 {[%clk 0:00:23]}  Kf5 {[%clk 0:00:02]} 52. b8=N {[%clk 0:00:24]}  Ke4 {[%clk 0:00:02]} 53. Nd7 {[%clk 0:00:22]}  Kf5 {[%clk 0:00:03]} 54. Nc5 {[%clk 0:00:22]}  Kg4 {[%clk 0:00:03]} 55. Nd3 {[%clk 0:00:23]}  Kf5 {[%clk 0:00:03]} 56. Ne1 {[%clk 0:00:23]}  Kg4 {[%clk 0:00:03]} 57. Nb6 {[%clk 0:00:22]}  Kh3 {[%clk 0:00:03]} 58. Nxf3 {[%clk 0:00:23]}  Kg4 {[%clk 0:00:03]} 59. Kg2 {[%clk 0:00:20]}  Kf5 {[%clk 0:00:04]} 60. Nc4 {[%clk 0:00:19]}  Ke4 {[%clk 0:00:04]} 61. Ncd2+ {[%clk 0:00:20]}  Kf5 {[%clk 0:00:04]} 62. Ne1 {[%clk 0:00:20]}  Kg4 {[%clk 0:00:05]} 63. f4 {[%clk 0:00:20]}  Kf5 {[%clk 0:00:05]} 64. Kf3 {[%clk 0:00:21]}  Kf6 {[%clk 0:00:05]} 65. Nb1 {[%clk 0:00:20]}  Ke6 {[%clk 0:00:06]} 66. Nd3 {[%clk 0:00:20]}  Kf5 {[%clk 0:00:07]} 67. Nc1 {[%clk 0:00:21]}  Ke6 {[%clk 0:00:07]} 68. Ke4 {[%clk 0:00:22]}  Kf6 {[%clk 0:00:08]} 69. f5 {[%clk 0:00:23]}  Ke7 {[%clk 0:00:08]} 70. Ke5 {[%clk 0:00:23]}  Kd7 {[%clk 0:00:08]} 71. f6 {[%clk 0:00:23]}  Kc6 {[%clk 0:00:09]} 72. f7 {[%clk 0:00:23]}  Kc5 {[%clk 0:00:09]} 73. f8=R {[%clk 0:00:20]}  Kc4 {[%clk 0:00:09]} 74. Rc8+ {[%clk 0:00:20]}  Kb4 {[%clk 0:00:09]} 75. Nd3+ {[%clk 0:00:19]}  Kb3 {[%clk 0:00:09]} 76. Nd2+ {[%clk 0:00:20]}  Ka4 {[%clk 0:00:08]} 77. Ra8+ {[%clk 0:00:18]}  Kb5 {[%clk 0:00:08]} 78. Kd5 {[%clk 0:00:17]}  Kb6 {[%clk 0:00:09]} 79. Bf2+ {[%clk 0:00:17]}  Kb7 {[%clk 0:00:08]} 80. Ra7+ {[%clk 0:00:18]}  Kb8 {[%clk 0:00:07]} 81. Nc5 {[%clk 0:00:17]}  Kc8 {[%clk 0:00:08]} 82. Ndb3 {[%clk 0:00:18]}  Kb8 {[%clk 0:00:08]} 83. Nd4 {[%clk 0:00:18]}  Kc8 {[%clk 0:00:08]} 84. Nb5 {[%clk 0:00:16]}  Kd8 {[%clk 0:00:07]} 85. Ne6+ {[%clk 0:00:15]}  Kc8 {[%clk 0:00:07]} 86. Nd6+ {[%clk 0:00:15]}  Kb8 {[%clk 0:00:07]} 87. Rb7+ {[%clk 0:00:15]}  Ka8 {[%clk 0:00:07]} 88. Nc7# {[%clk 0:00:16]} 1-0


[Site "https://www.chess.com"]

[Event "Titled Tuesday Blitz August 15 Late 2023"]
[White "djathtaspogradec"]
[Black "Shapiro, Viktor"]
[BlackFideId "4175700"]
[WhiteElo "2473"]
[BlackElo "2564"]
[Result "1-0"]
[Round "9"]
[TimeControl "180+1"]
[Date "2023.08.15"]
[WhiteClock "0:00:20"]
[BlackClock "0:00:04"]
[Board "49"]

1. e4 {[%clk 0:03:00]}  e5 {[%clk 0:02:57]} 2. Nf3 {[%clk 0:03:00]}  Nc6 {[%clk 0:02:57]} 3. Bc4 {[%clk 0:03:01]}  Bc5 {[%clk 0:02:56]} 4. c3 {[%clk 0:03:00]}  Nf6 {[%clk 0:02:55]} 5. d3 {[%clk 0:03:01]}  O-O {[%clk 0:02:52]} 6. a4 {[%clk 0:02:59]}  a5 {[%clk 0:02:51]} 7. O-O {[%clk 0:02:59]}  d6 {[%clk 0:02:51]} 8. Nbd2 {[%clk 0:02:56]}  Be6 {[%clk 0:02:49]} 9. h3 {[%clk 0:02:56]}  h6 {[%clk 0:02:42]} 10. Bb5 {[%clk 0:02:55]}  Ba7 {[%clk 0:02:31]} 11. Re1 {[%clk 0:02:54]}  Ne7 {[%clk 0:02:23]} 12. d4 {[%clk 0:02:54]}  Ng6 {[%clk 0:02:23]} 13. Nf1 {[%clk 0:02:49]}  c6 {[%clk 0:02:20]} 14. Bd3 {[%clk 0:02:49]}  Qc7 {[%clk 0:02:14]} 15. Ng3 {[%clk 0:02:48]}  Rfe8 {[%clk 0:02:08]} 16. Bc2 {[%clk 0:02:36]}  Rad8 {[%clk 0:02:07]} 17. Be3 {[%clk 0:02:15]}  Nf4 {[%clk 0:01:41]} 18. Qd2 {[%clk 0:02:12]}  g5 {[%clk 0:01:14]} 19. Nf5 {[%clk 0:02:09]}  Bxf5 {[%clk 0:01:10]} 20. exf5 {[%clk 0:02:10]}  e4 {[%clk 0:00:55]} 21. Bxf4 {[%clk 0:01:58]}  gxf4 {[%clk 0:00:47]} 22. Qxf4 {[%clk 0:01:39]}  exf3 {[%clk 0:00:46]} 23. Qxh6 {[%clk 0:01:40]}  Rxe1+ {[%clk 0:00:29]} 24. Rxe1 {[%clk 0:01:40]}  Re8 {[%clk 0:00:26]} 25. Rxe8+ {[%clk 0:00:45]}  Nxe8 {[%clk 0:00:25]} 26. f6 {[%clk 0:00:46]}  Nxf6 {[%clk 0:00:22]} 27. Qxf6 {[%clk 0:00:47]}  d5 {[%clk 0:00:14]} 28. Qxf3 {[%clk 0:00:39]}  Bb8 {[%clk 0:00:13]} 29. g3 {[%clk 0:00:39]}  Qd6 {[%clk 0:00:13]} 30. Kg2 {[%clk 0:00:35]}  Bc7 {[%clk 0:00:13]} 31. Qf5 {[%clk 0:00:35]}  Kf8 {[%clk 0:00:12]} 32. Qc8+ {[%clk 0:00:35]}  Ke7 {[%clk 0:00:12]} 33. Qxb7 {[%clk 0:00:32]}  Qd7 {[%clk 0:00:12]} 34. Bf5 {[%clk 0:00:28]}  Qd8 {[%clk 0:00:11]} 35. Qxc6 {[%clk 0:00:27]}  Bd6 {[%clk 0:00:07]} 36. Qxd5 {[%clk 0:00:26]}  Qb8 {[%clk 0:00:07]} 37. b3 {[%clk 0:00:23]}  Qc7 {[%clk 0:00:06]} 38. c4 {[%clk 0:00:23]}  Bb4 {[%clk 0:00:06]} 39. c5 {[%clk 0:00:22]}  Kf6 {[%clk 0:00:04]} 40. Bd3 {[%clk 0:00:21]}  Qe7 {[%clk 0:00:04]} 41. Qf5+ {[%clk 0:00:21]}  Kg7 {[%clk 0:00:04]} 42. Qh7+ {[%clk 0:00:19]}  Kf8 {[%clk 0:00:04]} 43. Qh8# {[%clk 0:00:20]} 1-0


[Site "https://www.chess.com"]

[Event "Titled Tuesday Blitz August 15 Late 2023"]
[White "Bueno, Alfeu Junior Varela"]
[Black "Francisco Guecamburu, Candela Be"]
[WhiteFideId "2108879"]
[BlackFideId "160911"]
[WhiteElo "2468"]
[BlackElo "2550"]
[Result "0-1"]
[Round "9"]
[TimeControl "180+1"]
[Date "2023.08.15"]
[WhiteClock "0:00:00"]
[BlackClock "0:00:13"]
[Board "50"]

1. e4 {[%clk 0:03:00]}  c5 {[%clk 0:02:59]} 2. Nc3 {[%clk 0:02:55]}  g6 {[%clk 0:03:00]} 3. f4 {[%clk 0:02:55]}  Bg7 {[%clk 0:03:00]} 4. Nf3 {[%clk 0:02:55]}  Nc6 {[%clk 0:03:01]} 5. Bb5 {[%clk 0:02:55]}  Nd4 {[%clk 0:03:01]} 6. O-O {[%clk 0:02:55]}  Nxb5 {[%clk 0:02:57]} 7. Nxb5 {[%clk 0:02:55]}  d5 {[%clk 0:02:57]} 8. exd5 {[%clk 0:02:56]}  a6 {[%clk 0:02:56]} 9. Nc3 {[%clk 0:02:56]}  Nf6 {[%clk 0:02:57]} 10. d4 {[%clk 0:02:57]}  Nxd5 {[%clk 0:02:56]} 11. dxc5 {[%clk 0:02:56]}  Nxc3 {[%clk 0:02:56]} 12. Qxd8+ {[%clk 0:02:56]}  Kxd8 {[%clk 0:02:57]} 13. bxc3 {[%clk 0:02:57]}  Bxc3 {[%clk 0:02:58]} 14. Rb1 {[%clk 0:02:57]}  Kc7 {[%clk 0:02:57]} 15. Rb3 {[%clk 0:02:57]}  Bf6 {[%clk 0:02:56]} 16. Bd2 {[%clk 0:02:58]}  Kc6 {[%clk 0:02:44]} 17. Ba5 {[%clk 0:02:42]}  Kxc5 {[%clk 0:02:20]} 18. Rb6 {[%clk 0:02:11]}  Be6 {[%clk 0:01:57]} 19. Nd2 {[%clk 0:01:39]}  Bd5 {[%clk 0:01:48]} 20. c4 {[%clk 0:01:33]}  Bc6 {[%clk 0:01:44]} 21. Rd1 {[%clk 0:01:06]}  Kd6 {[%clk 0:01:20]} 22. Ne4+ {[%clk 0:00:29]}  Ke6 {[%clk 0:01:19]} 23. Ng3 {[%clk 0:00:18]}  h5 {[%clk 0:00:50]} 24. Kf2 {[%clk 0:00:14]}  h4 {[%clk 0:00:49]} 25. Ne2 {[%clk 0:00:14]}  Kf5 {[%clk 0:00:45]} 26. Ke3 {[%clk 0:00:10]}  Rac8 {[%clk 0:00:41]} 27. Nd4+ {[%clk 0:00:05]}  Bxd4+ {[%clk 0:00:39]} 28. Rxd4 {[%clk 0:00:06]}  Bxg2 {[%clk 0:00:37]} 29. Rb2 {[%clk 0:00:02]}  Bc6 {[%clk 0:00:35]} 30. Re2 {[%clk 0:00:01]}  Rhe8 {[%clk 0:00:17]} 31. h3 {[%clk 0:00:01]}  e5 {[%clk 0:00:16]} 32. fxe5 {[%clk 0:00:01]}  Rxe5+ {[%clk 0:00:17]} 33. Kf2 {[%clk 0:00:00]}  Rxa5 {[%clk 0:00:13]} 0-1


[Site "https://www.chess.com"]

[Event "Titled Tuesday Blitz August 15 Late 2023"]
[White "Polaczek, Richard"]
[Black "subham777"]
[WhiteFideId "200026"]
[WhiteElo "2389"]
[BlackElo "2540"]
[Result "0-1"]
[Round "9"]
[TimeControl "180+1"]
[Date "2023.08.15"]
[WhiteClock "0:00:59"]
[BlackClock "0:00:52"]
[Board "53"]

1. d4 {[%clk 0:02:58]}  d5 {[%clk 0:02:59]} 2. c4 {[%clk 0:02:57]}  e6 {[%clk 0:02:59]} 3. Nc3 {[%clk 0:02:57]}  Nf6 {[%clk 0:02:59]} 4. cxd5 {[%clk 0:02:56]}  exd5 {[%clk 0:03:00]} 5. Bg5 {[%clk 0:02:56]}  c6 {[%clk 0:03:01]} 6. Qc2 {[%clk 0:02:55]}  Bd6 {[%clk 0:03:01]} 7. Bxf6 {[%clk 0:02:47]}  Qxf6 {[%clk 0:03:00]} 8. e3 {[%clk 0:02:42]}  O-O {[%clk 0:02:59]} 9. Bd3 {[%clk 0:02:41]}  h6 {[%clk 0:02:58]} 10. Nge2 {[%clk 0:02:40]}  Qh4 {[%clk 0:02:49]} 11. h3 {[%clk 0:02:22]}  Na6 {[%clk 0:02:36]} 12. a3 {[%clk 0:02:20]}  Nc7 {[%clk 0:02:34]} 13. Bh7+ {[%clk 0:02:16]}  Kh8 {[%clk 0:02:33]} 14. Bf5 {[%clk 0:02:17]}  Be6 {[%clk 0:02:24]} 15. g3 {[%clk 0:02:09]}  Qf6 {[%clk 0:02:24]} 16. Bxe6 {[%clk 0:01:55]}  fxe6 {[%clk 0:02:18]} 17. Nf4 {[%clk 0:01:54]}  Bxf4 {[%clk 0:02:12]} 18. gxf4 {[%clk 0:01:53]}  Ne8 {[%clk 0:02:07]} 19. O-O-O {[%clk 0:01:50]}  Nd6 {[%clk 0:02:06]} 20. Kb1 {[%clk 0:01:48]}  a5 {[%clk 0:02:04]} 21. Rdg1 {[%clk 0:01:45]}  b5 {[%clk 0:02:00]} 22. Rg6 {[%clk 0:01:36]}  Qf7 {[%clk 0:01:58]} 23. Rhg1 {[%clk 0:01:35]}  b4 {[%clk 0:01:49]} 24. Rxg7 {[%clk 0:01:29]}  Qxg7 {[%clk 0:01:47]} 25. Rxg7 {[%clk 0:01:26]}  Kxg7 {[%clk 0:01:48]} 26. axb4 {[%clk 0:01:22]}  axb4 {[%clk 0:01:48]} 27. Na4 {[%clk 0:01:23]}  Nc4 {[%clk 0:01:47]} 28. Nc5 {[%clk 0:01:15]}  b3 {[%clk 0:01:34]} 29. Qe2 {[%clk 0:01:14]}  Ra2 {[%clk 0:01:21]} 30. Qg4+ {[%clk 0:01:11]}  Kh7 {[%clk 0:01:08]} 31. Nxe6 {[%clk 0:01:06]}  Rxb2+ {[%clk 0:01:02]} 32. Kc1 {[%clk 0:01:04]}  Rc2+ {[%clk 0:01:02]} 33. Kd1 {[%clk 0:01:04]}  Nb2+ {[%clk 0:00:54]} 34. Ke1 {[%clk 0:01:02]}  Nd3+ {[%clk 0:00:54]} 35. Kf1 {[%clk 0:01:02]}  Rxf2+ {[%clk 0:00:52]} 36. Kg1 {[%clk 0:00:59]}  Rg8 {[%clk 0:00:52]} 0-1


[Site "https://www.chess.com"]

[Event "Titled Tuesday Blitz August 15 Late 2023"]
[White "Ardila, Oscar Humberto"]
[Black "Peycheva, Gergana"]
[WhiteFideId "4404742"]
[BlackFideId "2916711"]
[WhiteElo "2305"]
[BlackElo "2519"]
[Result "0-1"]
[Round "9"]
[TimeControl "180+1"]
[Date "2023.08.15"]
[WhiteClock "0:00:00"]
[BlackClock "0:00:20"]
[Board "55"]

1. d4 {[%clk 0:02:59]}  d5 {[%clk 0:02:59]} 2. c4 {[%clk 0:03:00]}  dxc4 {[%clk 0:02:59]} 3. Qa4+ {[%clk 0:02:59]}  Nd7 {[%clk 0:02:49]} 4. Qxc4 {[%clk 0:02:59]}  e6 {[%clk 0:02:49]} 5. Nf3 {[%clk 0:02:58]}  a6 {[%clk 0:02:49]} 6. Bf4 {[%clk 0:02:57]}  c5 {[%clk 0:02:48]} 7. e3 {[%clk 0:02:56]}  b5 {[%clk 0:02:47]} 8. Qc2 {[%clk 0:02:55]}  Bb7 {[%clk 0:02:44]} 9. Nbd2 {[%clk 0:02:44]}  Rc8 {[%clk 0:02:43]} 10. dxc5 {[%clk 0:02:26]}  Bxc5 {[%clk 0:02:38]} 11. Qd1 {[%clk 0:02:21]}  Ngf6 {[%clk 0:02:23]} 12. Be2 {[%clk 0:02:21]}  O-O {[%clk 0:02:09]} 13. O-O {[%clk 0:02:21]}  Nb6 {[%clk 0:01:53]} 14. Nb3 {[%clk 0:02:19]}  Be7 {[%clk 0:01:49]} 15. Qxd8 {[%clk 0:02:16]}  Rfxd8 {[%clk 0:01:48]} 16. Rac1 {[%clk 0:02:16]}  Nfd5 {[%clk 0:01:47]} 17. Be5 {[%clk 0:02:13]}  Na4 {[%clk 0:01:39]} 18. Na5 {[%clk 0:02:05]}  Ba8 {[%clk 0:01:37]} 19. b3 {[%clk 0:01:15]}  Nac3 {[%clk 0:01:35]} 20. Bxc3 {[%clk 0:00:31]}  Nxc3 {[%clk 0:01:34]} 21. Rc2 {[%clk 0:00:28]}  Bb4 {[%clk 0:01:29]} 22. a3 {[%clk 0:00:25]}  Nxe2+ {[%clk 0:01:25]} 23. Rxe2 {[%clk 0:00:24]}  Bxf3 {[%clk 0:01:21]} 24. gxf3 {[%clk 0:00:23]}  Bxa5 {[%clk 0:01:21]} 25. b4 {[%clk 0:00:24]}  Bb6 {[%clk 0:01:21]} 26. Kg2 {[%clk 0:00:24]}  Rc3 {[%clk 0:01:20]} 27. Ra1 {[%clk 0:00:24]}  g5 {[%clk 0:01:15]} 28. a4 {[%clk 0:00:24]}  Rd5 {[%clk 0:00:56]} 29. axb5 {[%clk 0:00:24]}  axb5 {[%clk 0:00:52]} 30. Ra8+ {[%clk 0:00:23]}  Kg7 {[%clk 0:00:51]} 31. Rb8 {[%clk 0:00:23]}  Bc7 {[%clk 0:00:50]} 32. Rb7 {[%clk 0:00:23]}  Bd6 {[%clk 0:00:48]} 33. Rb2 {[%clk 0:00:16]}  h6 {[%clk 0:00:47]} 34. h3 {[%clk 0:00:15]}  Rc4 {[%clk 0:00:47]} 35. Rb3 {[%clk 0:00:12]}  Rxb4 {[%clk 0:00:46]} 36. Rxb4 {[%clk 0:00:12]}  Bxb4 {[%clk 0:00:45]} 37. e4 {[%clk 0:00:12]}  Rc5 {[%clk 0:00:39]} 38. Kf1 {[%clk 0:00:13]}  Bd2 {[%clk 0:00:39]} 39. Ke2 {[%clk 0:00:13]}  Bf4 {[%clk 0:00:40]} 40. Kd3 {[%clk 0:00:13]}  Kf6 {[%clk 0:00:38]} 41. Kd4 {[%clk 0:00:13]}  Rc4+ {[%clk 0:00:32]} 42. Kd3 {[%clk 0:00:13]}  Rb4 {[%clk 0:00:31]} 43. Rb6 {[%clk 0:00:11]}  Rb1 {[%clk 0:00:30]} 44. Kc2 {[%clk 0:00:08]}  Rf1 {[%clk 0:00:27]} 45. Kd3 {[%clk 0:00:07]}  Rxf2 {[%clk 0:00:28]} 46. Rxb5 {[%clk 0:00:06]}  Rxf3+ {[%clk 0:00:28]} 47. Ke2 {[%clk 0:00:06]}  Rxh3 {[%clk 0:00:27]} 48. Kf2 {[%clk 0:00:07]}  Rh2+ {[%clk 0:00:25]} 49. Kf3 {[%clk 0:00:06]}  h5 {[%clk 0:00:25]} 50. e5+ {[%clk 0:00:06]}  Bxe5 {[%clk 0:00:25]} 51. Ke4 {[%clk 0:00:07]}  Re2+ {[%clk 0:00:25]} 52. Kf3 {[%clk 0:00:07]}  Re1 {[%clk 0:00:25]} 53. Rb7 {[%clk 0:00:06]}  g4+ {[%clk 0:00:25]} 54. Kf2 {[%clk 0:00:07]}  Ra1 {[%clk 0:00:25]} 55. Rb5 {[%clk 0:00:05]}  g3+ {[%clk 0:00:26]} 56. Kg2 {[%clk 0:00:05]}  Ra2+ {[%clk 0:00:26]} 57. Kf3 {[%clk 0:00:05]}  Rf2+ {[%clk 0:00:24]} 58. Ke3 {[%clk 0:00:04]}  Rf5 {[%clk 0:00:21]} 59. Rb7 {[%clk 0:00:02]}  g2 {[%clk 0:00:21]} 60. Rb1 {[%clk 0:00:00]}  Bh2 {[%clk 0:00:20]} 0-1


[Site "https://www.chess.com"]

[Event "Titled Tuesday Blitz August 15 Late 2023"]
[White "Cnejev, Vladimir-Alexandru"]
[Black "Dr_Pepper18"]
[WhiteFideId "1260898"]
[WhiteElo "2572"]
[BlackElo "2341"]
[Result "0-1"]
[Round "9"]
[TimeControl "180+1"]
[Date "2023.08.15"]
[WhiteClock "0:00:00"]
[BlackClock "0:00:38"]
[Board "56"]

1. Nf3 {[%clk 0:02:51]}  Nf6 {[%clk 0:02:57]} 2. b3 {[%clk 0:02:52]}  g6 {[%clk 0:02:57]} 3. Bb2 {[%clk 0:02:52]}  Bg7 {[%clk 0:02:57]} 4. e3 {[%clk 0:02:50]}  O-O {[%clk 0:02:57]} 5. c4 {[%clk 0:02:49]}  c5 {[%clk 0:02:56]} 6. Nc3 {[%clk 0:02:45]}  Nc6 {[%clk 0:02:55]} 7. d4 {[%clk 0:02:44]}  cxd4 {[%clk 0:02:55]} 8. Nxd4 {[%clk 0:02:45]}  d5 {[%clk 0:02:30]} 9. cxd5 {[%clk 0:02:40]}  Nxd4 {[%clk 0:02:29]} 10. Qxd4 {[%clk 0:02:33]}  Nxd5 {[%clk 0:02:28]} 11. Qxg7+ {[%clk 0:01:42]}  Kxg7 {[%clk 0:02:29]} 12. Nxd5+ {[%clk 0:01:42]}  Kg8 {[%clk 0:02:26]} 13. O-O-O {[%clk 0:01:36]}  Be6 {[%clk 0:02:15]} 14. Nf6+ {[%clk 0:01:22]}  exf6 {[%clk 0:02:16]} 15. Rxd8 {[%clk 0:01:23]}  Rfxd8 {[%clk 0:02:14]} 16. Bd4 {[%clk 0:00:50]}  Rac8+ {[%clk 0:02:00]} 17. Kb2 {[%clk 0:00:49]}  Bf5 {[%clk 0:01:53]} 18. Bc4 {[%clk 0:00:49]}  a6 {[%clk 0:01:49]} 19. a4 {[%clk 0:00:43]}  b5 {[%clk 0:01:46]} 20. axb5 {[%clk 0:00:44]}  axb5 {[%clk 0:01:47]} 21. Bxb5 {[%clk 0:00:45]}  Rc2+ {[%clk 0:01:47]} 22. Ka3 {[%clk 0:00:44]}  Rxf2 {[%clk 0:01:22]} 23. Rc1 {[%clk 0:00:28]}  Be6 {[%clk 0:01:17]} 24. Rc7 {[%clk 0:00:19]}  Ra8+ {[%clk 0:01:00]} 25. Kb4 {[%clk 0:00:18]}  Rb8 {[%clk 0:01:00]} 26. Rc3 {[%clk 0:00:09]}  Bd7 {[%clk 0:00:43]} 27. Rc5 {[%clk 0:00:00]}  Rf5 {[%clk 0:00:38]} 0-1


[Site "https://www.chess.com"]

[Event "Titled Tuesday Blitz August 15 Late 2023"]
[White "Graif, William"]
[Black "KrokerGuy"]
[WhiteFideId "2609835"]
[WhiteElo "2552"]
[BlackElo "2458"]
[Result "1-0"]
[Round "9"]
[TimeControl "180+1"]
[Date "2023.08.15"]
[WhiteClock "0:00:07"]
[BlackClock "0:00:00"]
[Board "60"]

1. e4 {[%clk 0:03:00]}  e5 {[%clk 0:02:59]} 2. Nf3 {[%clk 0:03:00]}  Nc6 {[%clk 0:02:59]} 3. d4 {[%clk 0:03:00]}  exd4 {[%clk 0:03:00]} 4. c3 {[%clk 0:03:00]}  dxc3 {[%clk 0:02:54]} 5. Bc4 {[%clk 0:02:59]}  d6 {[%clk 0:02:41]} 6. Qb3 {[%clk 0:02:43]}  Qd7 {[%clk 0:02:18]} 7. Nxc3 {[%clk 0:02:33]}  Na5 {[%clk 0:02:15]} 8. Qb4 {[%clk 0:02:29]}  Nxc4 {[%clk 0:02:14]} 9. Qxc4 {[%clk 0:02:30]}  Nf6 {[%clk 0:02:08]} 10. O-O {[%clk 0:02:27]}  Be7 {[%clk 0:01:40]} 11. Bg5 {[%clk 0:02:00]}  O-O {[%clk 0:01:31]} 12. Rad1 {[%clk 0:01:59]}  h6 {[%clk 0:01:10]} 13. Bxf6 {[%clk 0:01:28]}  Bxf6 {[%clk 0:01:11]} 14. e5 {[%clk 0:01:28]}  Be7 {[%clk 0:01:10]} 15. Nd5 {[%clk 0:01:20]}  Bd8 {[%clk 0:01:04]} 16. Nf4 {[%clk 0:00:48]}  Re8 {[%clk 0:00:43]} 17. Rfe1 {[%clk 0:00:42]}  Qc6 {[%clk 0:00:26]} 18. Qxc6 {[%clk 0:00:35]}  bxc6 {[%clk 0:00:27]} 19. exd6 {[%clk 0:00:30]}  Rxe1+ {[%clk 0:00:26]} 20. Rxe1 {[%clk 0:00:30]}  Kf8 {[%clk 0:00:14]} 21. Ne5 {[%clk 0:00:26]}  cxd6 {[%clk 0:00:10]} 22. Nxc6 {[%clk 0:00:27]}  Bg5 {[%clk 0:00:08]} 23. Nd3 {[%clk 0:00:19]}  Bb7 {[%clk 0:00:08]} 24. Na5 {[%clk 0:00:17]}  Bd5 {[%clk 0:00:07]} 25. Nb4 {[%clk 0:00:16]}  Be6 {[%clk 0:00:02]} 26. Rd1 {[%clk 0:00:17]}  Rd8 {[%clk 0:00:01]} 27. Nac6 {[%clk 0:00:15]}  Rd7 {[%clk 0:00:01]} 28. Nd4 {[%clk 0:00:14]}  Be7 {[%clk 0:00:01]} 29. Nbc6 {[%clk 0:00:13]}  Bd8 {[%clk 0:00:01]} 30. Nxd8 {[%clk 0:00:13]}  Rxd8 {[%clk 0:00:01]} 31. Nb5 {[%clk 0:00:14]}  Ke7 {[%clk 0:00:01]} 32. Nxa7 {[%clk 0:00:14]}  Ra8 {[%clk 0:00:02]} 33. Nc6+ {[%clk 0:00:14]}  Kd7 {[%clk 0:00:02]} 34. Nb4 {[%clk 0:00:13]}  Bxa2 {[%clk 0:00:03]} 35. Ra1 {[%clk 0:00:13]}  Bd5 {[%clk 0:00:04]} 36. Rxa8 {[%clk 0:00:13]}  Bxa8 {[%clk 0:00:05]} 37. Kf1 {[%clk 0:00:13]}  Kc7 {[%clk 0:00:04]} 38. g3 {[%clk 0:00:13]}  Kb6 {[%clk 0:00:05]} 39. Ke2 {[%clk 0:00:13]}  Kb5 {[%clk 0:00:05]} 40. Nd3 {[%clk 0:00:12]}  Kc4 {[%clk 0:00:06]} 41. Ke3 {[%clk 0:00:12]}  Kb3 {[%clk 0:00:06]} 42. Kd4 {[%clk 0:00:13]}  Bb7 {[%clk 0:00:05]} 43. f4 {[%clk 0:00:12]}  g6 {[%clk 0:00:05]} 44. h4 {[%clk 0:00:10]}  h5 {[%clk 0:00:05]} 45. Ke3 {[%clk 0:00:09]}  Ba6 {[%clk 0:00:05]} 46. Nf2 {[%clk 0:00:08]}  f5 {[%clk 0:00:02]} 47. Kd4 {[%clk 0:00:08]}  Bb7 {[%clk 0:00:02]} 48. Nd1 {[%clk 0:00:07]}  Bf3 {[%clk 0:00:01]} 49. Ne3 {[%clk 0:00:06]}  Kxb2 {[%clk 0:00:02]} 50. Nc4+ {[%clk 0:00:07]}  Kc2 {[%clk 0:00:02]} 51. Nxd6 {[%clk 0:00:08]}  Kd2 {[%clk 0:00:03]} 52. Ke5 {[%clk 0:00:07]}  Ke2 {[%clk 0:00:02]} 53. Kf6 {[%clk 0:00:07]}  Kf2 {[%clk 0:00:03]} 54. Kxg6 {[%clk 0:00:07]}  Kxg3 {[%clk 0:00:03]} 55. Nxf5+ {[%clk 0:00:07]}  Kxf4 {[%clk 0:00:03]} 56. Ng7 {[%clk 0:00:06]}  Kg3 {[%clk 0:00:02]} 57. Kg5 {[%clk 0:00:07]}  Bg4 {[%clk 0:00:01]} 58. Nxh5+ {[%clk 0:00:07]}  Kf3 {[%clk 0:00:02]} 59. Nf6 {[%clk 0:00:07]}  Be6 {[%clk 0:00:01]} 60. h5 {[%clk 0:00:07]}  Bf7 {[%clk 0:00:00]} 61. h6 {[%clk 0:00:07]} 1-0


[Site "https://www.chess.com"]